[Event "Titled Tuesday Blitz February 14 Early 2023"]
[White "Lorenzo De La Riva, Lazaro"]
[Black "Cramling Bellon, Anna"]
[WhiteFideId "2268809"]
[BlackFideId "32009232"]
[WhiteElo "2404"]
[BlackElo "2043"]
[Result "1-0"]
[Round "05"]
[TimeControl "180+2"]
[Date "2023.02.15"]
[WhiteClock "0:00:34"]
[BlackClock "0:00:05"]

1. d4 {[%clk 0:02:57]}  Nf6 {[%clk 0:02:59]} 2. Nd2 {[%clk 0:02:53]}  d5 {[%clk 0:02:57]} 3. e3 {[%clk 0:02:49]}  c5 {[%clk 0:02:56]} 4. dxc5 {[%clk 0:02:46]}  Nc6 {[%clk 0:02:57]} 5. a3 {[%clk 0:02:40]}  a5 {[%clk 0:02:56]} 6. Bb5 {[%clk 0:02:32]}  e6 {[%clk 0:02:53]} 7. Ngf3 {[%clk 0:02:30]}  Bxc5 {[%clk 0:02:51]} 8. b3 {[%clk 0:02:30]}  O-O {[%clk 0:02:31]} 9. Bb2 {[%clk 0:02:29]}  Qe7 {[%clk 0:02:22]} 10. O-O {[%clk 0:02:28]}  Rd8 {[%clk 0:02:05]} 11. Qe2 {[%clk 0:02:25]}  Bd7 {[%clk 0:01:59]} 12. c4 {[%clk 0:02:16]}  Ne4 {[%clk 0:01:41]} 13. Nxe4 {[%clk 0:01:54]}  dxe4 {[%clk 0:01:41]} 14. Bxc6 {[%clk 0:01:54]}  Bxc6 {[%clk 0:01:38]} 15. Ne5 {[%clk 0:01:54]}  f5 {[%clk 0:01:36]} 16. Qc2 {[%clk 0:01:26]}  Qg5 {[%clk 0:01:14]} 17. g3 {[%clk 0:01:21]}  Rac8 {[%clk 0:00:52]} 18. h4 {[%clk 0:01:19]}  Qh6 {[%clk 0:00:49]} 19. Qc3 {[%clk 0:01:09]}  Be8 {[%clk 0:00:35]} 20. Rad1 {[%clk 0:01:03]}  Bh5 {[%clk 0:00:32]} 21. Rxd8+ {[%clk 0:01:01]}  Rxd8 {[%clk 0:00:32]} 22. b4 {[%clk 0:00:41]}  axb4 {[%clk 0:00:31]} 23. axb4 {[%clk 0:00:42]}  Be7 {[%clk 0:00:26]} 24. c5 {[%clk 0:00:43]}  Bf6 {[%clk 0:00:25]} 25. Qc4 {[%clk 0:00:42]}  Bxe5 {[%clk 0:00:19]} 26. Bxe5 {[%clk 0:00:43]}  Rd2 {[%clk 0:00:15]} 27. Ra1 {[%clk 0:00:37]}  Rd1+ {[%clk 0:00:08]} 28. Rxd1 {[%clk 0:00:35]}  Bxd1 {[%clk 0:00:09]} 29. Qd4 {[%clk 0:00:35]}  Bf3 {[%clk 0:00:04]} 30. Qd8+ {[%clk 0:00:35]}  Kf7 {[%clk 0:00:04]} 31. Qd7+ {[%clk 0:00:35]}  Kg6 {[%clk 0:00:04]} 32. Qxe6+ {[%clk 0:00:34]}  Kh5 {[%clk 0:00:05]} 33. Qxf5+ {[%clk 0:00:34]} 1-0


[Site "https://www.chess.com"]

[Event "Titled Tuesday Blitz February 14 Early 2023"]
[White "Boder, Jan"]
[Black "Thiel, Thomas"]
[WhiteFideId "16243226"]
[BlackFideId "4615964"]
[WhiteElo "2294"]
[BlackElo "2234"]
[Result "0-1"]
[Round "05"]
[TimeControl "180+2"]
[Date "2023.02.15"]
[WhiteClock "0:00:01"]
[BlackClock "0:00:20"]

1. b3 {[%clk 0:02:57]}  e5 {[%clk 0:02:58]} 2. Bb2 {[%clk 0:02:58]}  Nc6 {[%clk 0:02:57]} 3. e3 {[%clk 0:02:58]}  Nf6 {[%clk 0:02:56]} 4. Bb5 {[%clk 0:02:58]}  Bd6 {[%clk 0:02:56]} 5. d3 {[%clk 0:02:54]}  Ne7 {[%clk 0:02:51]} 6. d4 {[%clk 0:02:51]}  c6 {[%clk 0:02:51]} 7. dxe5 {[%clk 0:02:45]}  Qa5+ {[%clk 0:02:44]} 8. Nd2 {[%clk 0:02:27]}  Bxe5 {[%clk 0:02:40]} 9. Bxe5 {[%clk 0:02:26]}  Qxb5 {[%clk 0:02:39]} 10. Ngf3 {[%clk 0:02:19]}  d5 {[%clk 0:02:14]} 11. c4 {[%clk 0:02:16]}  dxc4 {[%clk 0:02:10]} 12. Nxc4 {[%clk 0:02:09]}  O-O {[%clk 0:02:08]} 13. O-O {[%clk 0:02:07]}  Be6 {[%clk 0:02:06]} 14. Bxf6 {[%clk 0:02:01]}  gxf6 {[%clk 0:02:03]} 15. Nd4 {[%clk 0:02:01]}  Qd5 {[%clk 0:01:50]} 16. Qc2 {[%clk 0:01:31]}  Nf5 {[%clk 0:01:44]} 17. Nxf5 {[%clk 0:01:23]}  Bxf5 {[%clk 0:01:44]} 18. Qc3 {[%clk 0:01:24]}  Kg7 {[%clk 0:01:22]} 19. Rad1 {[%clk 0:01:23]}  Qc5 {[%clk 0:01:19]} 20. Rd6 {[%clk 0:01:21]}  Be6 {[%clk 0:01:16]} 21. Qd4 {[%clk 0:00:56]}  Qxd4 {[%clk 0:01:14]} 22. Rxd4 {[%clk 0:00:57]}  Rfd8 {[%clk 0:01:10]} 23. Rfd1 {[%clk 0:00:54]}  Rxd4 {[%clk 0:01:10]} 24. Rxd4 {[%clk 0:00:54]}  a5 {[%clk 0:01:08]} 25. f4 {[%clk 0:00:34]}  b5 {[%clk 0:01:00]} 26. Nd6 {[%clk 0:00:26]}  a4 {[%clk 0:00:57]} 27. f5 {[%clk 0:00:24]}  axb3 {[%clk 0:00:50]} 28. axb3 {[%clk 0:00:19]}  Bxb3 {[%clk 0:00:49]} 29. Rg4+ {[%clk 0:00:19]}  Kh8 {[%clk 0:00:47]} 30. e4 {[%clk 0:00:15]}  c5 {[%clk 0:00:44]} 31. Kf2 {[%clk 0:00:10]}  b4 {[%clk 0:00:43]} 32. Ke3 {[%clk 0:00:09]}  Ba2 {[%clk 0:00:42]} 33. Kd2 {[%clk 0:00:08]}  Rd8 {[%clk 0:00:38]} 34. e5 {[%clk 0:00:08]}  fxe5 {[%clk 0:00:36]} 35. Kc2 {[%clk 0:00:08]}  Rxd6 {[%clk 0:00:36]} 36. Kb2 {[%clk 0:00:08]}  Bd5 {[%clk 0:00:31]} 37. Rg3 {[%clk 0:00:07]}  e4 {[%clk 0:00:29]} 38. Re3 {[%clk 0:00:05]}  c4 {[%clk 0:00:28]} 39. g4 {[%clk 0:00:05]}  c3+ {[%clk 0:00:28]} 40. Kc1 {[%clk 0:00:06]}  Rc6 {[%clk 0:00:26]} 41. h4 {[%clk 0:00:06]}  b3 {[%clk 0:00:26]} 42. g5 {[%clk 0:00:06]}  b2+ {[%clk 0:00:26]} 43. Kc2 {[%clk 0:00:06]}  Bb3+ {[%clk 0:00:25]} 44. Kb1 {[%clk 0:00:05]}  c2+ {[%clk 0:00:20]} 45. Kxb2 {[%clk 0:00:05]}  c1=Q+ {[%clk 0:00:21]} 46. Kxb3 {[%clk 0:00:05]}  Qxe3+ {[%clk 0:00:21]} 47. Kb4 {[%clk 0:00:01]}  Qb6+ {[%clk 0:00:21]} 48. Ka3 {[%clk 0:00:01]}  Qa5+ {[%clk 0:00:20]} 49. Kb3 {[%clk 0:00:01]}  Qb5+ {[%clk 0:00:20]} 0-1


[Site "https://www.chess.com"]

[Event "Titled Tuesday Blitz February 14 Early 2023"]
[White "Broca Jimenez, Fernando"]
[Black "Silva Lucena, Cristian"]
[WhiteFideId "5104742"]
[BlackFideId "2232588"]
[WhiteElo "2075"]
[BlackElo "2285"]
[Result "0-1"]
[Round "05"]
[TimeControl "180+2"]
[Date "2023.02.15"]
[WhiteClock "0:00:19"]
[BlackClock "0:01:34"]

1. e4 {[%clk 0:02:13]}  e6 {[%clk 0:02:47]} 2. d4 {[%clk 0:02:11]}  d5 {[%clk 0:02:48]} 3. exd5 {[%clk 0:02:11]}  exd5 {[%clk 0:02:47]} 4. Bd3 {[%clk 0:02:11]}  Bd6 {[%clk 0:02:46]} 5. Ne2 {[%clk 0:02:11]}  Ne7 {[%clk 0:02:47]} 6. Bf4 {[%clk 0:02:12]}  Nbc6 {[%clk 0:02:46]} 7. c3 {[%clk 0:02:09]}  O-O {[%clk 0:02:45]} 8. O-O {[%clk 0:02:08]}  Bf5 {[%clk 0:02:45]} 9. Re1 {[%clk 0:02:02]}  Qd7 {[%clk 0:02:43]} 10. Qc2 {[%clk 0:01:51]}  Bxd3 {[%clk 0:02:36]} 11. Qxd3 {[%clk 0:01:52]}  a5 {[%clk 0:02:32]} 12. Nd2 {[%clk 0:01:50]}  a4 {[%clk 0:02:31]} 13. Nf3 {[%clk 0:01:35]}  Ra6 {[%clk 0:02:26]} 14. Bxd6 {[%clk 0:01:16]}  Qxd6 {[%clk 0:02:24]} 15. Ng3 {[%clk 0:01:17]}  Rb6 {[%clk 0:02:21]} 16. Re2 {[%clk 0:01:16]}  Ng6 {[%clk 0:02:18]} 17. Nf5 {[%clk 0:00:51]}  Nf4 {[%clk 0:02:16]} 18. Nxd6 {[%clk 0:00:40]}  Nxd3 {[%clk 0:02:15]} 19. Ne8 {[%clk 0:00:36]}  Nf4 {[%clk 0:01:57]} 20. Ree1 {[%clk 0:00:34]}  Rxb2 {[%clk 0:01:54]} 21. Nxc7 {[%clk 0:00:34]}  Ne2+ {[%clk 0:01:51]} 22. Kf1 {[%clk 0:00:33]}  Nxc3 {[%clk 0:01:50]} 23. a3 {[%clk 0:00:32]}  Rc8 {[%clk 0:01:41]} 24. Ne8 {[%clk 0:00:31]}  Ne4 {[%clk 0:01:40]} 25. Nxg7 {[%clk 0:00:19]}  Kxg7 {[%clk 0:01:34]} 0-1


[Site "https://www.chess.com"]

[Event "Titled Tuesday Blitz February 14 Early 2023"]
[White "Kielinkei"]
[Black "Aung Thant Zin"]
[BlackFideId "13000063"]
[WhiteElo "2360"]
[BlackElo "2268"]
[Result "1-0"]
[Round "05"]
[TimeControl "180+2"]
[Date "2023.02.15"]
[WhiteClock "0:00:03"]
[BlackClock "0:00:02"]

1. Nf3 {[%clk 0:03:00]}  d5 {[%clk 0:02:51]} 2. b3 {[%clk 0:02:58]}  c5 {[%clk 0:02:50]} 3. e3 {[%clk 0:02:56]}  Nc6 {[%clk 0:02:51]} 4. Bb5 {[%clk 0:02:53]}  Bg4 {[%clk 0:02:50]} 5. Bb2 {[%clk 0:02:51]}  e6 {[%clk 0:02:49]} 6. h3 {[%clk 0:02:50]}  Bxf3 {[%clk 0:02:49]} 7. Qxf3 {[%clk 0:02:50]}  Nf6 {[%clk 0:02:50]} 8. d3 {[%clk 0:02:47]}  Be7 {[%clk 0:02:49]} 9. Nd2 {[%clk 0:02:44]}  O-O {[%clk 0:02:44]} 10. Bxc6 {[%clk 0:02:43]}  bxc6 {[%clk 0:02:44]} 11. O-O {[%clk 0:02:40]}  a5 {[%clk 0:02:41]} 12. a4 {[%clk 0:02:38]}  Rb8 {[%clk 0:02:40]} 13. e4 {[%clk 0:02:38]}  c4 {[%clk 0:02:24]} 14. dxc4 {[%clk 0:02:33]}  Bb4 {[%clk 0:02:12]} 15. e5 {[%clk 0:02:07]}  Nd7 {[%clk 0:02:03]} 16. Rfd1 {[%clk 0:01:45]}  Qg5 {[%clk 0:01:40]} 17. Qe2 {[%clk 0:01:26]}  Bxd2 {[%clk 0:01:21]} 18. Qxd2 {[%clk 0:01:17]}  Qf5 {[%clk 0:01:14]} 19. cxd5 {[%clk 0:01:17]}  cxd5 {[%clk 0:01:14]} 20. Qe2 {[%clk 0:01:10]}  Rfc8 {[%clk 0:01:12]} 21. Rd3 {[%clk 0:01:03]}  Nc5 {[%clk 0:00:58]} 22. Rf3 {[%clk 0:01:02]}  Qh5 {[%clk 0:00:55]} 23. Bd4 {[%clk 0:00:50]}  Ne4 {[%clk 0:00:54]} 24. Re3 {[%clk 0:00:40]}  Qg6 {[%clk 0:00:44]} 25. Rc1 {[%clk 0:00:34]}  h5 {[%clk 0:00:38]} 26. c4 {[%clk 0:00:33]}  h4 {[%clk 0:00:28]} 27. c5 {[%clk 0:00:31]}  Rb4 {[%clk 0:00:25]} 28. Bb2 {[%clk 0:00:19]}  Rxc5 {[%clk 0:00:14]} 29. Rxc5 {[%clk 0:00:14]}  Nxc5 {[%clk 0:00:14]} 30. Ba3 {[%clk 0:00:15]}  Qb1+ {[%clk 0:00:12]} 31. Kh2 {[%clk 0:00:14]}  Rxb3 {[%clk 0:00:05]} 32. Bxc5 {[%clk 0:00:13]}  Rxe3 {[%clk 0:00:06]} 33. Qxe3 {[%clk 0:00:12]}  Qa2 {[%clk 0:00:05]} 34. Qd4 {[%clk 0:00:11]}  Qe2 {[%clk 0:00:04]} 35. Bb6 {[%clk 0:00:12]}  Qf1 {[%clk 0:00:02]} 36. Bxa5 {[%clk 0:00:10]}  Qa6 {[%clk 0:00:03]} 37. Bd2 {[%clk 0:00:08]}  Qc6 {[%clk 0:00:04]} 38. Be3 {[%clk 0:00:08]}  Qc2 {[%clk 0:00:04]} 39. a5 {[%clk 0:00:08]}  Qa2 {[%clk 0:00:05]} 40. Qb6 {[%clk 0:00:06]}  g6 {[%clk 0:00:05]} 41. a6 {[%clk 0:00:07]}  Qa1 {[%clk 0:00:02]} 42. Bd4 {[%clk 0:00:06]}  Qc1 {[%clk 0:00:02]} 43. Be3 {[%clk 0:00:04]}  Qa1 {[%clk 0:00:02]} 44. Bf4 {[%clk 0:00:03]} 1-0


[Site "https://www.chess.com"]

[Event "Titled Tuesday Blitz February 14 Early 2023"]
[White "Michalski, Olaf"]
[Black "Jimenez Garcia, Emmanuel"]
[WhiteFideId "1106740"]
[BlackFideId "6504779"]
[WhiteElo "2273"]
[BlackElo "2410"]
[Result "0-1"]
[Round "05"]
[TimeControl "180+2"]
[Date "2023.02.15"]
[WhiteClock "0:00:13"]
[BlackClock "0:00:47"]

1. d4 {[%clk 0:03:00]}  c5 {[%clk 0:02:55]} 2. d5 {[%clk 0:03:00]}  d6 {[%clk 0:02:55]} 3. Nc3 {[%clk 0:02:59]}  e5 {[%clk 0:02:55]} 4. e4 {[%clk 0:02:58]}  Be7 {[%clk 0:02:55]} 5. Nf3 {[%clk 0:02:54]}  Nf6 {[%clk 0:02:55]} 6. Bb5+ {[%clk 0:02:52]}  Nbd7 {[%clk 0:02:55]} 7. a4 {[%clk 0:02:52]}  O-O {[%clk 0:02:55]} 8. O-O {[%clk 0:02:52]}  Kh8 {[%clk 0:02:56]} 9. Nd2 {[%clk 0:02:43]}  Ng8 {[%clk 0:02:53]} 10. Bd3 {[%clk 0:02:35]}  Bg5 {[%clk 0:02:47]} 11. Nc4 {[%clk 0:02:34]}  Bxc1 {[%clk 0:02:48]} 12. Qxc1 {[%clk 0:02:33]}  Nb6 {[%clk 0:02:32]} 13. Ne3 {[%clk 0:02:29]}  Bd7 {[%clk 0:02:29]} 14. a5 {[%clk 0:01:55]}  Nc8 {[%clk 0:02:29]} 15. a6 {[%clk 0:01:55]}  bxa6 {[%clk 0:02:02]} 16. Rxa6 {[%clk 0:01:53]}  Nh6 {[%clk 0:01:55]} 17. Nb5 {[%clk 0:01:26]}  Bxb5 {[%clk 0:01:46]} 18. Bxb5 {[%clk 0:01:25]}  f5 {[%clk 0:01:45]} 19. exf5 {[%clk 0:01:13]}  Nxf5 {[%clk 0:01:46]} 20. Nxf5 {[%clk 0:01:11]}  Rxf5 {[%clk 0:01:47]} 21. b3 {[%clk 0:01:03]}  Rb8 {[%clk 0:01:46]} 22. c4 {[%clk 0:00:58]}  Rb7 {[%clk 0:01:44]} 23. Qa3 {[%clk 0:00:55]}  Rbf7 {[%clk 0:01:42]} 24. Qa5 {[%clk 0:00:48]}  Qf8 {[%clk 0:01:40]} 25. Qa2 {[%clk 0:00:38]}  h5 {[%clk 0:01:28]} 26. Rc6 {[%clk 0:00:37]}  e4 {[%clk 0:01:20]} 27. Qe2 {[%clk 0:00:34]}  Re5 {[%clk 0:01:18]} 28. Qe3 {[%clk 0:00:28]}  Rf6 {[%clk 0:01:09]} 29. Ba6 {[%clk 0:00:22]}  Ne7 {[%clk 0:01:08]} 30. Rc7 {[%clk 0:00:20]}  Nf5 {[%clk 0:01:08]} 31. Qg5 {[%clk 0:00:17]}  Nd4 {[%clk 0:01:03]} 32. Qxe5 {[%clk 0:00:15]}  dxe5 {[%clk 0:01:03]} 33. Rc8 {[%clk 0:00:15]}  e3 {[%clk 0:00:47]} 34. Rxf8+ {[%clk 0:00:14]}  Rxf8 {[%clk 0:00:47]} 35. fxe3 {[%clk 0:00:13]}  Ne2+ {[%clk 0:00:47]} 0-1


[Site "https://www.chess.com"]

[Event "Titled Tuesday Blitz February 14 Early 2023"]
[White "Bongo Akanga Ndjila, Barthelemy"]
[Black "Kalajzic, Ivan"]
[WhiteFideId "10609431"]
[BlackFideId "14506378"]
[WhiteElo "1824"]
[BlackElo "2062"]
[Result "1/2-1/2"]
[Round "05"]
[TimeControl "180+2"]
[Date "2023.02.15"]
[WhiteClock "0:00:12"]
[BlackClock "0:00:15"]

1. d4 {[%clk 0:02:53]}  Nc6 {[%clk 0:02:58]} 2. c4 {[%clk 0:02:52]}  e5 {[%clk 0:02:58]} 3. d5 {[%clk 0:02:53]}  Nce7 {[%clk 0:02:58]} 4. Nc3 {[%clk 0:02:53]}  Nf6 {[%clk 0:02:57]} 5. e4 {[%clk 0:02:53]}  Ng6 {[%clk 0:02:56]} 6. g3 {[%clk 0:02:46]}  Bc5 {[%clk 0:02:47]} 7. h4 {[%clk 0:02:44]}  h5 {[%clk 0:02:43]} 8. Bg5 {[%clk 0:02:41]}  c6 {[%clk 0:02:43]} 9. Nf3 {[%clk 0:02:37]}  Qb6 {[%clk 0:02:42]} 10. Qe2 {[%clk 0:02:35]}  Ng4 {[%clk 0:02:41]} 11. Nd1 {[%clk 0:02:21]}  O-O {[%clk 0:02:20]} 12. Be3 {[%clk 0:02:19]}  d6 {[%clk 0:02:01]} 13. Bxc5 {[%clk 0:02:17]}  Qxc5 {[%clk 0:01:59]} 14. Bg2 {[%clk 0:02:15]}  f5 {[%clk 0:01:49]} 15. exf5 {[%clk 0:01:59]}  Bxf5 {[%clk 0:01:46]} 16. Ng5 {[%clk 0:01:50]}  Qd4 {[%clk 0:01:27]} 17. O-O {[%clk 0:01:46]}  Bd3 {[%clk 0:01:25]} 18. Ne6 {[%clk 0:01:11]}  Bxe2 {[%clk 0:01:22]} 19. Nxd4 {[%clk 0:01:11]}  Bxf1 {[%clk 0:01:19]} 20. Ne6 {[%clk 0:01:08]}  Bxg2 {[%clk 0:01:18]} 21. Kxg2 {[%clk 0:01:08]}  Rf7 {[%clk 0:01:13]} 22. f3 {[%clk 0:01:08]}  Nf6 {[%clk 0:01:11]} 23. Ne3 {[%clk 0:01:07]}  cxd5 {[%clk 0:01:09]} 24. cxd5 {[%clk 0:01:05]}  Rc8 {[%clk 0:01:08]} 25. Rd1 {[%clk 0:01:03]}  Nf8 {[%clk 0:01:03]} 26. Ng5 {[%clk 0:01:01]}  Rfc7 {[%clk 0:01:03]} 27. Kh3 {[%clk 0:00:55]}  Rc1 {[%clk 0:00:51]} 28. Rd3 {[%clk 0:00:52]}  Rh1+ {[%clk 0:00:49]} 29. Kg2 {[%clk 0:00:52]}  Rcc1 {[%clk 0:00:50]} 30. Nf5 {[%clk 0:00:43]}  e4 {[%clk 0:00:41]} 31. fxe4 {[%clk 0:00:40]}  Rcg1+ {[%clk 0:00:40]} 32. Kf2 {[%clk 0:00:39]}  Ng4+ {[%clk 0:00:40]} 33. Ke2 {[%clk 0:00:39]}  Rh2+ {[%clk 0:00:35]} 34. Kf3 {[%clk 0:00:30]}  Ne5+ {[%clk 0:00:35]} 35. Ke3 {[%clk 0:00:29]}  Re1+ {[%clk 0:00:25]} 36. Kd4 {[%clk 0:00:28]}  Nxd3 {[%clk 0:00:21]} 37. Kxd3 {[%clk 0:00:16]}  Rxb2 {[%clk 0:00:20]} 38. Kc3 {[%clk 0:00:15]}  Rxa2 {[%clk 0:00:20]} 39. Kb3 {[%clk 0:00:14]}  Raa1 {[%clk 0:00:20]} 40. Ne7+ {[%clk 0:00:13]}  Kh8 {[%clk 0:00:19]} 41. Nf7+ {[%clk 0:00:11]}  Kh7 {[%clk 0:00:19]} 42. Ng5+ {[%clk 0:00:11]}  Kh6 {[%clk 0:00:17]} 43. Nf7+ {[%clk 0:00:11]}  Kh7 {[%clk 0:00:16]} 44. Ng5+ {[%clk 0:00:12]}  Kh8 {[%clk 0:00:16]} 45. Nf7+ {[%clk 0:00:12]}  Kh7 {[%clk 0:00:15]} 1/2-1/2


[Site "https://www.chess.com"]

[Event "Titled Tuesday Blitz February 14 Early 2023"]
[White "Todorovic, Bojan"]
[Black "Ricaurte Lopez, Juan Carlos"]
[WhiteFideId "917087"]
[BlackFideId "3600327"]
[WhiteElo "2195"]
[BlackElo "2226"]
[Result "1-0"]
[Round "05"]
[TimeControl "180+2"]
[Date "2023.02.15"]
[WhiteClock "0:00:38"]
[BlackClock "0:00:22"]

1. d4 {[%clk 0:02:59]}  d5 {[%clk 0:02:57]} 2. c4 {[%clk 0:02:58]}  e5 {[%clk 0:02:56]} 3. dxe5 {[%clk 0:02:57]}  d4 {[%clk 0:02:55]} 4. a3 {[%clk 0:02:56]}  Nc6 {[%clk 0:02:54]} 5. e3 {[%clk 0:02:55]}  Bf5 {[%clk 0:02:31]} 6. Nf3 {[%clk 0:02:47]}  dxe3 {[%clk 0:02:23]} 7. Qxd8+ {[%clk 0:02:45]}  Rxd8 {[%clk 0:02:21]} 8. Bxe3 {[%clk 0:02:45]}  f6 {[%clk 0:02:11]} 9. Nc3 {[%clk 0:02:33]}  fxe5 {[%clk 0:02:08]} 10. Be2 {[%clk 0:02:29]}  Nf6 {[%clk 0:02:06]} 11. O-O {[%clk 0:02:28]}  h6 {[%clk 0:01:51]} 12. Rad1 {[%clk 0:02:18]}  Be7 {[%clk 0:01:50]} 13. Nb5 {[%clk 0:02:14]}  Rd7 {[%clk 0:01:35]} 14. Rxd7 {[%clk 0:01:58]}  Kxd7 {[%clk 0:01:35]} 15. Rd1+ {[%clk 0:01:57]}  Kc8 {[%clk 0:01:34]} 16. Nxa7+ {[%clk 0:01:40]}  Nxa7 {[%clk 0:01:32]} 17. Bxa7 {[%clk 0:01:40]}  b6 {[%clk 0:01:32]} 18. Nxe5 {[%clk 0:01:40]}  Kb7 {[%clk 0:01:28]} 19. Bf3+ {[%clk 0:01:39]}  Kxa7 {[%clk 0:01:27]} 20. Nc6+ {[%clk 0:01:39]}  Ka6 {[%clk 0:01:24]} 21. Nxe7 {[%clk 0:01:31]}  Be4 {[%clk 0:01:15]} 22. Be2 {[%clk 0:01:22]}  c5 {[%clk 0:01:04]} 23. Nd5 {[%clk 0:01:16]}  Ka5 {[%clk 0:00:32]} 24. b4+ {[%clk 0:00:58]}  cxb4 {[%clk 0:00:29]} 25. axb4+ {[%clk 0:00:57]}  Ka4 {[%clk 0:00:28]} 26. Nxf6 {[%clk 0:00:48]}  gxf6 {[%clk 0:00:26]} 27. c5 {[%clk 0:00:43]}  bxc5 {[%clk 0:00:24]} 28. bxc5 {[%clk 0:00:42]}  Rc8 {[%clk 0:00:22]} 29. Rd4+ {[%clk 0:00:38]} 1-0


[Site "https://www.chess.com"]

[Event "Titled Tuesday Blitz February 14 Early 2023"]
[White "Baruch, Liam"]
[Black "Real_taiatai"]
[WhiteFideId "14322064"]
[WhiteElo "1718"]
[BlackElo "2349"]
[Result "0-1"]
[Round "05"]
[TimeControl "180+2"]
[Date "2023.02.15"]
[WhiteClock "0:00:07"]
[BlackClock "0:01:38"]

1. e4 {[%clk 0:03:00]}  c5 {[%clk 0:03:00]} 2. Nf3 {[%clk 0:03:00]}  Nc6 {[%clk 0:02:59]} 3. d4 {[%clk 0:03:00]}  cxd4 {[%clk 0:02:59]} 4. Nxd4 {[%clk 0:03:01]}  e5 {[%clk 0:03:00]} 5. Nb5 {[%clk 0:03:01]}  d6 {[%clk 0:02:59]} 6. N1c3 {[%clk 0:02:56]}  a6 {[%clk 0:02:59]} 7. Na3 {[%clk 0:02:56]}  Be7 {[%clk 0:02:59]} 8. Nc4 {[%clk 0:02:53]}  Be6 {[%clk 0:02:53]} 9. Ne3 {[%clk 0:02:44]}  Nf6 {[%clk 0:02:51]} 10. Bd3 {[%clk 0:02:38]}  O-O {[%clk 0:02:50]} 11. O-O {[%clk 0:02:37]}  b5 {[%clk 0:02:48]} 12. a3 {[%clk 0:02:36]}  Rc8 {[%clk 0:02:47]} 13. Ncd5 {[%clk 0:02:18]}  Bxd5 {[%clk 0:02:40]} 14. Nxd5 {[%clk 0:02:18]}  Nxd5 {[%clk 0:02:37]} 15. exd5 {[%clk 0:02:18]}  Nb8 {[%clk 0:02:36]} 16. f4 {[%clk 0:02:08]}  Bf6 {[%clk 0:02:33]} 17. Kh1 {[%clk 0:01:47]}  Nd7 {[%clk 0:02:33]} 18. Qh5 {[%clk 0:01:41]}  g6 {[%clk 0:02:30]} 19. Qh3 {[%clk 0:01:36]}  Nc5 {[%clk 0:02:25]} 20. fxe5 {[%clk 0:01:34]}  Bxe5 {[%clk 0:02:24]} 21. Bh6 {[%clk 0:01:32]}  Re8 {[%clk 0:02:22]} 22. Qf3 {[%clk 0:01:28]}  Rc7 {[%clk 0:02:20]} 23. c3 {[%clk 0:01:13]}  Qh4 {[%clk 0:02:15]} 24. h3 {[%clk 0:00:36]}  Qxh6 {[%clk 0:02:13]} 25. Bc2 {[%clk 0:00:34]}  Rce7 {[%clk 0:02:10]} 26. b4 {[%clk 0:00:33]}  Nd7 {[%clk 0:02:08]} 27. Rf2 {[%clk 0:00:31]}  f5 {[%clk 0:02:05]} 28. Raf1 {[%clk 0:00:29]}  Qh4 {[%clk 0:02:00]} 29. Qd3 {[%clk 0:00:24]}  Rc8 {[%clk 0:01:55]} 30. Rf3 {[%clk 0:00:17]}  Rxc3 {[%clk 0:01:53]} 31. Qd2 {[%clk 0:00:17]}  Rxf3 {[%clk 0:01:52]} 32. Rxf3 {[%clk 0:00:17]}  Nb6 {[%clk 0:01:50]} 33. Bxf5 {[%clk 0:00:13]}  Nc4 {[%clk 0:01:40]} 34. Qc2 {[%clk 0:00:08]}  Qe1+ {[%clk 0:01:38]} 35. Rf1 {[%clk 0:00:07]} 0-1


[Site "https://www.chess.com"]

[Event "Titled Tuesday Blitz February 14 Early 2023"]
[White "Vargas, Mauricio"]
[Black "Buscar, Michael"]
[WhiteFideId "4404572"]
[BlackFideId "2603616"]
[WhiteElo "2035"]
[BlackElo "2041"]
[Result "0-1"]
[Round "05"]
[TimeControl "180+2"]
[Date "2023.02.15"]
[WhiteClock "0:00:03"]
[BlackClock "0:01:05"]

1. e4 {[%clk 0:00:53]}  e5 {[%clk 0:02:50]} 2. Nf3 {[%clk 0:00:53]}  Nc6 {[%clk 0:02:50]} 3. Bc4 {[%clk 0:00:53]}  Nf6 {[%clk 0:02:49]} 4. Ng5 {[%clk 0:00:50]}  d5 {[%clk 0:02:48]} 5. exd5 {[%clk 0:00:49]}  Na5 {[%clk 0:02:49]} 6. Bb5+ {[%clk 0:00:48]}  c6 {[%clk 0:02:49]} 7. dxc6 {[%clk 0:00:47]}  bxc6 {[%clk 0:02:49]} 8. Bd3 {[%clk 0:00:44]}  Bc5 {[%clk 0:02:46]} 9. O-O {[%clk 0:00:38]}  O-O {[%clk 0:02:43]} 10. Nc3 {[%clk 0:00:33]}  Bg4 {[%clk 0:02:42]} 11. Qe1 {[%clk 0:00:29]}  Re8 {[%clk 0:02:15]} 12. Nge4 {[%clk 0:00:26]}  Bd4 {[%clk 0:02:10]} 13. a3 {[%clk 0:00:19]}  Nb7 {[%clk 0:02:10]} 14. b4 {[%clk 0:00:16]}  Nd6 {[%clk 0:02:05]} 15. Rb1 {[%clk 0:00:15]}  Nd5 {[%clk 0:01:50]} 16. Nxd6 {[%clk 0:00:14]}  Qxd6 {[%clk 0:01:45]} 17. Ne4 {[%clk 0:00:14]}  Qh6 {[%clk 0:01:41]} 18. h3 {[%clk 0:00:11]}  Bh5 {[%clk 0:01:27]} 19. Nc5 {[%clk 0:00:11]}  Nf4 {[%clk 0:01:24]} 20. Be4 {[%clk 0:00:06]}  Bg6 {[%clk 0:01:14]} 21. Bxc6 {[%clk 0:00:06]}  Bxc2 {[%clk 0:01:10]} 22. Bxa8 {[%clk 0:00:03]}  Rxa8 {[%clk 0:01:05]} 0-1


[Site "https://www.chess.com"]